[Event "8th Brazilian Open SESC Caioba 2024"]
[Site "Caioba"]
[Date "2024.06.26"]
[Round "5.3"]
[White "Umetsubo, Cesar Hidemitsu"]
[Black "Delgado Ramirez, Neuris"]
[Result "0-1"]
[ECO "D02"]
[WhiteElo "2362"]
[BlackElo "2487"]
[Annotator "TA"]
[PlyCount "90"]
[EventDate "2024.06.15"]
[EventCountry "BRA"]
[SourceTitle "playchess.com"]
[Source "ChessBase"]
[SourceQuality "1"]
[TimeControl "5400+30"]

{[%evp 11,90,-6,0,0,8,5,0,-4,5,-10,-5,0,0,-39,-30,-38,-34,-55,-61,-64,0,-49,-39,-61,-33,-71,-75,-77,-69,-64,-65,-61,-59,-85,-66,-100,-107,-189,-187,-264,-268,-266,-193,-173,-169,-194,-177,-185,-183,-187,-185,-192,-191,-201,-204,-214,-210,-214,-207,-206,-184,-224,-178,-215,-208,-199,-206,-214,-222,-216,-207,-228,-185,-190,-195,-218,-220,-229,-216,-208,-213]} 1. d4 {[%emt 0:02:14]} Nf6 {[%emt 0:25:07]} 2. Nf3 {[%emt 0:00:47]} e6 {[%emt 0:00:06]} 3. Bf4 {[%emt 0:00:10]} c5 {[%emt 0:00:21]} 4. e3 {[%emt 0:01:44]} Nc6 {[%emt 0:00:20]} 5. c3 {[%emt 0:01:58]} d5 {[%emt 0:00:21]} 6. Nbd2 {[%emt 0:01:04]} Nh5 {[%emt 0:01:56]} 7. Bg5 {[%emt 0:04:20]} f6 {[%emt 0:00:58]} 8. Bh4 {[%emt 0:01:54][%cal Of3e5]} g6 {[%emt 0:00:13]} 9. Bb5 {[%emt 0:16:20] The position is equal.} cxd4 {[%emt 0:01:40]} 10. Nxd4 {[%emt 0:09:09]} Bd7 {[%emt 0:00:08]} 11. O-O {[%emt 0:07:04]} Be7 {[%emt 0:00:57]} 12. Qa4 {[%emt 0:07:45][%cal Rd4c6]} a6 {[%emt 0:01:11]} 13. Be2 {[%emt 0:03:55]} (13. Nxc6 $2 axb5 14. Qxb5 Bxc6 $19 (14... bxc6 $2 15. Qd3 $19)) 13... Ng7 {[%emt 0:03:58]} 14. Qb3 {[%emt 0:00:54]} e5 {[%emt 0:12:17]} 15. Nxc6 {[%emt 0:00:20]} Bxc6 {[%emt 0:00:03]} ({Better is} 15... bxc6 $15 16. e4 O-O) 16. Rfd1 {[%emt 0:10:04]} (16. f4 $11 {was preferrable.}) 16... Nf5 $15 {[%emt 0:01:16]} 17. Bg3 {[%emt 0:00:27]} Qa5 {[%emt 0:02:59]} 18. c4 {[%emt 0:07:56]} d4 {[%emt 0:02:39] And now ...dxe3 would win.} 19. e4 {[%emt 0:02:05]} Nxg3 {[%emt 0:00:49]} 20. Qxg3 {[%emt 0:00:10]} Qb6 {[%emt 0:00:31]} 21. Rab1 {[%emt 0:02:28][%cal Ob2b4]} a5 {[%emt 0:01:10]} 22. Bg4 {[%emt 0:05:03] Black continues to play with concentration.} Bb4 {[%emt 0:02:50]} 23. Qh4 {[%emt 0:03:43]} Kf7 {[%emt 0:00:38]} 24. f4 {[%emt 0:07:09]} exf4 $19 {[%emt 0:02:45] Active counter play!} 25. e5 {[%emt 0:00:32]} (25. Kh1 $142) 25... fxe5 {[%emt 0:01:39]} 26. Nf3 {[%emt 0:00:02]} Bxf3 {[%emt 0:03:14]} 27. Bxf3 {[%emt 0:00:01] Black is clearly better.} Qc7 {[%emt 0:02:48][%cal Of7g7]} 28. Qh6 {[%emt 0:02:02]} Bf8 {[%emt 0:01:36]} (28... Qxc4 29. Rbc1 Qe6 30. Rc7+ Be7 31. Rdc1 $11) 29. Bd5+ {[%emt 0:00:06]} Kf6 {[%emt 0:00:05]} 30. Qh3 {[%emt 0:00:44]} Kg7 {[%emt 0:00:16]} 31. Rd3 {[%emt 0:02:52]} Rd8 {[%emt 0:01:13]} 32. Re1 {[%emt 0:00:43]} Bb4 {[%emt 0:00:30]} 33. Re2 {[%emt 0:00:13] [#]} b5 $1 {[%emt 0:02:29]} 34. b3 {[%emt 0:00:25]} Rhe8 {[%emt 0:00:56]} 35. Qf3 {[%emt 0:00:17]} Qc5 {[%emt 0:01:21]} 36. h4 {[%emt 0:00:40]} h5 {[%emt 0:01:24]} 37. Qe4 {[%emt 0:00:09]} Re7 {[%emt 0:01:25]} 38. Kh1 {[%emt 0:01:01]} Qd6 {[%emt 0:00:38]} 39. g3 {[%emt 0:00:37]} bxc4 {[%emt 0:00:52]} 40. bxc4 {[%emt 0:00:12]} Rf8 {[%emt 0:00:11] [#] ...fxg3 would now be deadly.} 41. Rg2 {[%emt 0:00:23]} Qf6 {[%emt 0:02:51]} 42. Rf3 {[%emt 0:00:33]} Kh6 {[%emt 0:00:15]} 43. Qd3 {[%emt 0:01:01]} Rg7 {[%emt 0:00:48]} 44. g4 {[%emt 0:00:41]} hxg4 {[%emt 0:00:37]} (44... Qxh4+ 45. Rh3 e4 (45... Qe1+ $2 46. Rg1 $18) 46. Bxe4 Qe1+ (46... Qg5 $2 47. gxh5 $18) 47. Rg1 $18) 45. Rxg4 {[%emt 0:00:07]} Qf5 {[%emt 0:00:07] Weighted Error Value: White=0.16 (very precise) /Black=0.10 (very precise) .  Mistake:       	White=3     	Black=1      Inaccurate:     	White=4     	Black=1      OK:         	White=13    	Black=20     Best:        	---       	Black=2} 0-1

[Event "8th Brazilian Open SESC Caioba 2024"]
[Site "Caioba"]
[Date "2024.06.26"]
[Round "5.4"]
[White "Martins, Vinicius Tine"]
[Black "Di Berardino, Diego Rafael"]
[Result "1/2-1/2"]
[ECO "A34"]
[WhiteElo "2268"]
[BlackElo "2473"]
[Annotator "TA"]
[PlyCount "108"]
[EventDate "2024.06.15"]
[EventCountry "BRA"]
[SourceTitle "playchess.com"]
[Source "ChessBase"]
[SourceQuality "1"]
[TimeControl "5400+30"]

{[%evp 17,108,-16,0,0,-4,0,-8,-15,-16,0,0,-8,-14,-62,-89,-70,-77,-91,-91,-169,-66,-52,-48,-96,-80,-74,-47,-51,-54,-60,-15,-56,-70,-81,-73,-71,-38,-95,-95,-96,-81,-96,-101,-87,-78,-118,-112,-110,-103,-110,-74,-74,-74,-74,-74,-74,-74,-107,-107,-107,-107,-107,-107,-107,-107,-107,-107,-107,-107,-107,-107,-107,-107,-107,-107,-107,-107,-107,0,-107,0,-107,-107,-107,-107,-107,-107,-107,-107,-107,-107,-107,-107]} 1. Nf3 {[%emt 0:04:37]} Nf6 {[%emt 0:01:24]} 2. c4 {[%emt 0:00:22]} c5 {[%emt 0:01:23]} 3. Nc3 {[%emt 0:02:16]} Nc6 {[%emt 0:01:08]} 4. g3 {[%emt 0:01:59]} d5 {[%emt 0:06:08]} 5. cxd5 {[%emt 0:00:08]} Nxd5 {[%emt 0:00:05]} 6. d3 {[%emt 0:01:50]} e6 {[%emt 0:09:52]} 7. Bg2 {[%emt 0:01:38]} Be7 {[%emt 0:00:17]} 8. O-O {[%emt 0:00:40]} O-O {[%emt 0:00:06]} 9. Bd2 {[%emt 0:06:03]} b6 {[%emt 0:02:20]} 10. a3 {[%emt 0:01:22]} Bb7 {[%emt 0:01:45]} 11. Qa4 {[%emt 0:02:14]} a6 {[%emt 0:12:06]} 12. Rfc1 {[%emt 0:05:35] The position is equal.} b5 {[%emt 0:04:23]} 13. Qd1 {[%emt 0:01:03]} Qb6 {[%emt 0:06:06]} 14. Nxd5 {[%emt 0:14:46]} exd5 {[%emt 0:00:05]} 15. Nh4 {[%emt 0:00:12]} (15. e3 $11) 15... Bxh4 {[%emt 0:08:27]} 16. gxh4 {[%emt 0:00:03][%cal Oa3a4]} Rfe8 {[%emt 0:01:43]} 17. Bf4 {[%emt 0:06:23][%cal Oa3a4]} c4 {[%emt 0:05:58]} 18. e3 {[%emt 0:10:11] [#] Repels Nd4} (18. dxc4 $17 {was necessary.} dxc4 19. Qd7) 18... Ne5 {[%emt 0:03:30]} (18... Na5 $1 $19 19. d4 Nb3) 19. Bxe5 $15 {[%emt 0:01:17]} Rxe5 {[%emt 0:00:04]} 20. d4 {[%emt 0:00:39]} (20. a4 $15 {is more appropriate.}) 20... Re6 {[%emt 0:00:13]} 21. h5 {[%emt 0:05:06]} f5 {[%emt 0:22:18]} 22. Qf3 {[%emt 0:03:53]} Rf8 {[%emt 0:00:10][%cal Of5f4]} 23. Qf4 {[%emt 0:01:04][%cal Ob2b3]} Qd8 {[%emt 0:00:03]} 24. Kh1 {[%emt 0:06:42]} Qd6 {[%emt 0:04:24]} 25. Bf3 {[%emt 0:04:48]} Qxf4 {[%emt 0:04:02]} 26. exf4 {[%emt 0:00:02][%cal Ob2b3]} Rfe8 {[%emt 0:05:30]} 27. Rg1 {[%emt 0:00:51]} ({White should try} 27. b3 $15) 27... Kf7 $17 {[%emt 0:00:00]} 28. Rg5 {[%emt 0:01:51]} Re1+ {[%emt 0:00:00]} 29. Rg1 {[%emt 0:00:02]} Rxa1 {[%emt 0:00:00]} 30. Rxa1 {[%emt 0:00:01][%mdl 4096] Endgame. KRB-KRB} a5 {[%emt 0:00:00]} 31. Kg1 {[%emt 0:00:33]} Kf6 {[%emt 0:00:19]} 32. Kf1 {[%emt 0:00:38]} Bc6 {[%emt 0:00:12]} 33. Re1 {[%emt 0:02:01]} Rxe1+ {[%emt 0:00:38]} 34. Kxe1 {[%emt 0:00:02] KB-KB} b4 {[%emt 0:00:18]} 35. axb4 {[%emt 0:00:13]} axb4 {[%emt 0:00:04]} 36. Kd2 {[%emt 0:00:15]} Ke6 {[%emt 0:00:05]} 37. h6 {[%emt 0:01:04]} gxh6 {[%emt 0:01:23]} 38. Bd1 {[%emt 0:03:01]} Be8 {[%emt 0:00:13]} 39. Ke3 {[%emt 0:04:11]} Kd6 {[%emt 0:00:07]} 40. Kd2 {[%emt 0:00:18]} Kc7 {[%emt 0:00:20]} 41. Ke3 {[%emt 0:01:05]} Kb6 {[%emt 0:00:08]} 42. Kd2 {[%emt 0:00:26]} Ka5 {[%emt 0:00:11]} 43. Bf3 {[%emt 0:04:10]} Bf7 {[%emt 0:00:13]} 44. Bd1 {[%emt 0:00:26]} Kb5 {[%emt 0:01:08]} 45. Be2 {[%emt 0:01:54]} Kc6 {[%emt 0:02:18]} 46. Bd1 {[%emt 0:00:26]} Kd6 {[%emt 0:00:22]} 47. Be2 {[%emt 0:00:56]} Be8 {[%emt 0:00:05]} 48. Bd1 $1 {[%emt 0:00:23]} Ke6 {[%emt 0:00:53]} 49. Ke3 $1 {[%emt 0:00:43]} Bd7 {[%emt 0:00:16] Black is better.} 50. Kd2 {[%emt 0:00:17]} Bb5 {[%emt 0:00:05]} 51. Bc2 {[%emt 0:00:57]} Kf6 {[%emt 0:00:09]} 52. Bd1 {[%emt 0:00:18]} Kg6 {[%emt 0:02:31]} 53. Bf3 {[%emt 0:01:07]} Bc6 {[%emt 0:00:03]} 54. Bd1 {[%emt 0:00:45]} Kf6 {[%emt 0:00:56] Weighted Error Value: White=0.09 (flawless) /Black=0.13 (very precise) .  Mistake:       	White=4     	Black=1      Inaccurate:     	White=3     	Black=4      OK:         	White=11    	Black=15     Best:        	White=2     	Black=2      Strong:       	White=2     	---} 1/2-1/2

[Event "8th Brazilian Open SESC Caioba 2024"]
[Site "Caioba"]
[Date "2024.06.26"]
[Round "5.5"]
[White "Santiago, Yago De Moura"]
[Black "Do Valle Cardoso, Lucas"]
[Result "1-0"]
[ECO "E93"]
[WhiteElo "2462"]
[BlackElo "2356"]
[Annotator "TA"]
[PlyCount "101"]
[EventDate "2024.06.15"]
[EventCountry "BRA"]
[SourceTitle "playchess.com"]
[Source "ChessBase"]
[SourceQuality "1"]
[TimeControl "5400+30"]

{[%evp 18,101,41,25,37,35,38,27,38,57,59,4,80,70,80,80,90,83,87,92,81,80,82,99,102,43,39,35,54,0,26,12,16,28,23,23,40,20,55,41,53,51,57,48,75,70,77,77,89,75,82,83,85,84,220,98,181,81,408,418,572,555,588,581,747,729,1772,1738,1225,1768,1502,1699,1737,1478,1820,1743,1514,1447,2275,1965,5583,1583,29971,29971,29963,1455]} 1. d4 {[%emt 0:00:36]} Nf6 {[%emt 0:00:15]} 2. c4 {[%emt 0:00:07]} g6 {[%emt 0:00:08]} 3. Nc3 {[%emt 0:00:17]} Bg7 {[%emt 0:00:12]} 4. e4 {[%emt 0:00:09]} d6 {[%emt 0:00:07]} 5. Nf3 {[%emt 0:00:06]} O-O {[%emt 0:00:20]} 6. Be2 {[%emt 0:00:10]} e5 {[%emt 0:00:59]} 7. d5 {[%emt 0:00:08]} Nbd7 {[%emt 0:01:48]} 8. h3 {[%emt 0:01:29]} Nc5 {[%emt 0:05:18]} 9. Qc2 {[%emt 0:00:18]} a5 {[%emt 0:04:10]} 10. g4 {[%emt 0:00:18]} c6 {[%emt 0:06:38]} 11. Be3 {[%emt 0:02:08]} cxd5 {[%emt 0:04:19]} 12. cxd5 {[%emt 0:00:27]} b6 {[%emt 0:03:54] White has an edge.} 13. Nd2 {[%emt 0:06:53][%cal Bf3d2,Bd2c4,Bc4a5][%mdl 32]} Bd7 {[%emt 0:04:33]} 14. Rg1 {[%emt 0:08:46]} (14. a4 $14) 14... Rc8 {[%emt 0:04:02]} (14... a4 $11) 15. a4 $16 {[%emt 0:03:30]} Ne8 {[%emt 0:11:31][%cal Bf6e8,Be8c7,Bc7a6,Ba6b4][%mdl 32]} 16. Bb5 {[%emt 0:05:28]} Nc7 {[%emt 0:06:14]} 17. Bxd7 {[%emt 0:02:48]} Qxd7 {[%emt 0:01:59]} 18. Nc4 {[%emt 0:00:47]} Rb8 {[%emt 0:01:37]} 19. Bxc5 {[%emt 0:12:12]} bxc5 {[%emt 0:02:37]} 20. Nxa5 {[%emt 0:01:06]} Na6 {[%emt 0:09:42]} 21. Nb5 {[%emt 0:03:21]} (21. Nc4 $16) 21... Nb4 $14 {[%emt 0:01:26]} 22. Qc4 {[%emt 0:01:10]} Bf6 {[%emt 0:02:18]} (22... Ra8 23. Nc6 $16) 23. g5 {[%emt 0:04:00]} (23. Ke2 $14) 23... Bd8 {[%emt 0:03:15] [#]} 24. Nc6 {[%emt 0:00:09]} Nxc6 {[%emt 0:01:47]} 25. dxc6 {[%emt 0:00:03]} Qxc6 {[%emt 0:01:01]} 26. O-O-O {[%emt 0:00:15][%cal Ba1d1,Bd1d3,Bd3f3,Be1c1,Bc1c2,Bc2c3][%mdl 32]} Be7 {[%emt 0:00:51]} 27. h4 {[%emt 0:08:59][%cal Of2f4]} Rb6 {[%emt 0:02:31]} 28. Rd3 {[%emt 0:00:46]} (28. f4 {simplifies} exf4 29. Rgf1 Qc8 30. Rxf4 Qe6 31. Qxe6 fxe6 32. Rxf8+ Kxf8 33. Kc2) 28... Qd7 {[%emt 0:03:50]} 29. Kc2 {[%emt 0:04:55]} Qe6 {[%emt 0:00:45]} 30. Kc3 {[%emt 0:01:02]} Rfb8 {[%emt 0:01:31]} 31. Rf3 {[%emt 0:04:59]} R8b7 {[%emt 0:02:44]} 32. Rd1 {[%emt 0:03:46]} Kg7 {[%emt 0:03:05]} 33. b3 {[%emt 0:00:39] White has more active pieces.} Kg8 {[%emt 0:02:03]} 34. Qxe6 {[%emt 0:03:13]} (34. Qd5 {with more complications.} Rb8 35. Kc4 Rc6 36. Qxe6 fxe6 37. Rfd3) 34... fxe6 {[%emt 0:00:50]} 35. Rfd3 {[%emt 0:00:09][%cal Rd3d6]} Bf8 {[%emt 0:03:32] [#]} (35... c4 $16 36. bxc4 (36. Kxc4 Rc6+ 37. Kb4 d5+ 38. Ka5 Rbb6) 36... Rb8) 36. f3 {[%emt 0:03:13]} (36. Nxd6 Rxb3+ 37. Kc4 R3b4+ 38. Kc3 Ra7 $11) (36. Rxd6 $1 $18 {and the rest is easy.} Bxd6 37. Rxd6 Rxd6 38. Nxd6) 36... Be7 {[%emt 0:03:05]} (36... Rb8 $16 37. Kc2 (37. Nxd6 Rxb3+ 38. Kc4 R3b4+ 39. Kxc5 R4b6 $15) 37... c4 38. bxc4 Ra6) 37. Kc2 {[%emt 0:00:35]} ({Worse is} 37. Nxd6 Rxb3+ 38. Kc4 R3b4+ 39. Kc3 Rb3+ 40. Kc4 R3b4+ 41. Kc3 Rb3+ $11) (37. Kc4 $18) 37... Kf8 $2 {[%emt 0:02:49][%mdl 8192]} (37... c4 $16 {is tougher.} 38. bxc4 h6) 38. Nxd6 $18 {[%emt 0:01:02]} Bxd6 {[%emt 0:00:54]} 39. Rxd6 {[%emt 0:00:03][%mdl 4096] Endgame. KRR-KRR} Rb4 {[%emt 0:00:36]} 40. Rd8+ {[%emt 0:05:46]} Ke7 {[%emt 0:00:04]} 41. Rh8 {[%emt 0:00:16]} Rxb3 {[%emt 0:00:08]} 42. Rxh7+ {[%emt 0:00:06]} Ke8 {[%emt 0:00:02]} 43. Rxb7 {[%emt 0:01:31]} Rxb7 {[%emt 0:00:01] KR-KR} 44. a5 {[%emt 0:00:20]} Ra7 {[%emt 0:01:58] [#]} 45. Ra1 $1 {[%emt 0:00:15]} Kd7 {[%emt 0:00:19]} 46. Kc3 {[%emt 0:02:52]} Kc8 {[%emt 0:01:11]} 47. Kc4 {[%emt 0:00:54][%cal Oa5a6] a6! would now be deadly.} Rh7 {[%emt 0:00:28]} 48. Kxc5 {[%emt 0:01:04]} Rxh4 {[%emt 0:00:10]} 49. Kd6 {[%emt 0:00:14][%csl LRe5,LRe6][%cal Oa5a6] White wants to mate with a6!} Rh3 {[%emt 0:00:11]} 50. Ra3 {[%emt 0:00:26]} Rg3 {[%emt 0:00:02]} 51. Rb3 {[%emt 0:01:01] Weighted Error Value: White=0.15 (very precise) /Black=0.58.  Loses game:     	---       	Black=1      Mistake:       	White=5     	Black=3      Inaccurate:     	---       	Black=5      OK:         	White=12    	Black=6      Best:        	White=2     	Black=1      Brilliant:      	White=1     	---} (51. a6 $142 Kb8 52. Kxe5 Rxg5+ 53. Kxe6 (53. Kf6 Rg1 $18) 53... Rh5 54. e5 (54. Kf7 Rh7+ 55. Kxg6 Ra7 $18) 54... Ka7 55. Kd6 (55. f4 Rh4 $18) 55... Rh8 56. e6) 1-0

[Event "8th Brazilian Open SESC Caioba 2024"]
[Site "Caioba"]
[Date "2024.06.26"]
[Round "5.6"]
[White "Acosta, Pablo Ismael"]
[Black "Filgueiras, Nathan Felipe"]
[Result "1/2-1/2"]
[ECO "A13"]
[WhiteElo "2449"]
[BlackElo "2294"]
[Annotator "TA"]
[PlyCount "205"]
[EventDate "2024.06.15"]
[EventCountry "BRA"]
[SourceTitle "playchess.com"]
[Source "ChessBase"]
[SourceQuality "1"]
[TimeControl "5400+30"]

{[%evp 91,204,21,24,0,0,0,0,0,0,-8,-8,-8,0,-18,-15,-44,8,8,8,0,8,8,8,8,8,8,339,218,239,56,71,79,726,723,723,724,724,722,722,707,682,642,718,717,614,614,954,843,870,849,1007,843,843,295,1853,1654,2148,629,723,8,8,8,8,8,8,8,8,0,8,0,0,0,8,8,8,8,8,8,8,8,8,8,8,8,8,8,8,8,8,8,8,8,8,8,8,8,8,8,8,8,8,8,8,8,8,8,8,0,8,0,8,8,8,8,8]} 1. Nf3 {[%emt 1:31:00]} Nf6 {[%emt 0:02:50]} 2. c4 {[%emt 0:00:00]} e6 {[%emt 0:00:12]} 3. b3 {[%emt 0:00:00]} d5 {[%emt 0:02:48]} 4. e3 {[%emt 0:00:00]} c5 {[%emt 0:01:18]} 5. Bb2 {[%emt 0:00:00]} Nc6 {[%emt 0:01:11]} 6. cxd5 {[%emt 0:00:00]} exd5 {[%emt 0:00:09]} 7. Bb5 {[%emt 0:00:00]} Bd6 {[%emt 0:01:03]} 8. h3 {[%emt 0:00:00] A13: English Opening: 1...e6.} O-O {[%emt 0:02:38]} 9. O-O {[%emt 0:00:00]} Bc7 {[%emt 0:03:56]} 10. Nc3 $146 {[%emt 0:00:00]} ({Predecessor:} 10. d4 cxd4 11. Bxc6 bxc6 12. Qxd4 Re8 13. Nc3 Bb6 14. Qd2 c5 15. Rfd1 Bb7 16. Ne2 {½-½ Turski,B (2317)-Klimkowski,J (2474) Bydgoszcz op-A 2023 (7)}) 10... Qd6 {[%emt 0:11:25]} 11. Na4 {[%emt 0:00:00]} Bd7 {[%emt 0:10:00]} 12. Bxf6 {[%emt 0:00:00]} gxf6 {[%emt 0:00:46]} 13. d4 {[%emt 0:00:00]} b6 {[%emt 0:14:31]} 14. Nc3 {[%emt 0:00:00]} Be6 {[%emt 0:06:51]} 15. Rc1 {[%emt 0:00:00]} Kh8 {[%emt 0:04:48]} 16. dxc5 {[%emt 0:00:00]} bxc5 {[%emt 0:00:25]} 17. Bxc6 {[%emt 0:00:00]} Qxc6 {[%emt 0:00:30]} 18. Na4 {[%emt 0:00:00]} Rg8 {[%emt 0:05:25]} 19. Rxc5 {[%emt 0:00:00]} Qd6 {[%emt 0:08:07]} 20. Rxc7 {[%emt 0:00:00]} Qxc7 {[%emt 0:00:41]} 21. Qd4 {[%emt 0:00:00]} Qe7 {[%emt 0:02:26]} 22. Kh1 {[%emt 0:00:00]} Rac8 {[%emt 0:01:05]} 23. Nc3 {[%emt 0:00:00]} Rgd8 {[%emt 0:02:17]} 24. g4 {[%emt 0:00:00]} Rb8 {[%emt 0:06:09]} 25. Qf4 {[%emt 0:00:00]} d4 {[%emt 0:02:08]} 26. Nxd4 {[%emt 0:00:42]} Rbc8 {[%emt 0:00:07]} 27. Nce2 {[%emt 0:04:28]} Bd5+ {[%emt 0:00:46]} 28. Kg1 {[%emt 0:00:50]} Qe5 {[%emt 0:01:15]} 29. Qh6 {[%emt 0:02:32]} Qg5 {[%emt 0:01:55]} 30. Qxg5 {[%emt 0:00:08]} fxg5 {[%emt 0:00:02]} 31. f4 {[%emt 0:00:29]} Re8 {[%emt 0:01:44]} 32. Kf2 {[%emt 0:00:33]} f6 {[%emt 0:02:07]} 33. Rd1 {[%emt 0:01:26]} Be4 {[%emt 0:00:15]} 34. Ng3 {[%emt 0:01:42]} gxf4 {[%emt 0:00:19]} 35. exf4 {[%emt 0:00:01]} Rcd8 {[%emt 0:00:18]} 36. Nge2 {[%emt 0:00:15]} Bb7 {[%emt 0:00:43]} 37. Rc1 {[%emt 0:02:50]} Re4 {[%emt 0:02:06]} 38. Nf3 {[%emt 0:01:34]} Ba6 {[%emt 0:01:17]} 39. Ng3 {[%emt 0:00:34]} Rxf4 {[%emt 0:00:25]} 40. Nh5 {[%emt 0:00:16]} Re4 {[%emt 0:01:35]} 41. Rc7 {[%emt 0:00:14]} Rf8 {[%emt 0:01:20]} 42. Rxa7 {[%emt 0:00:13]} Bb5 {[%emt 0:00:52]} 43. Ng3 {[%emt 0:00:38]} Re6 {[%emt 0:00:41]} 44. Nd4 {[%emt 0:00:39]} Rb6 {[%emt 0:00:01]} 45. a4 {[%emt 0:01:00]} Bd3 {[%emt 0:00:27]} 46. Rd7 {[%emt 0:00:07]} Bg6 {[%emt 0:00:33]} 47. a5 {[%emt 0:00:29]} Rb4 {[%emt 0:00:26]} 48. a6 {[%emt 0:01:12]} Ra8 {[%emt 0:00:39]} 49. Rd6 {[%emt 0:00:03]} Bf7 {[%emt 0:00:38]} 50. Ne4 {[%emt 0:00:43]} Bxb3 {[%emt 0:00:31]} 51. Nxf6 {[%emt 0:00:23]} Bg8 {[%emt 0:00:23]} (51... Bf7 $5) 52. Nf5 {[%emt 0:00:45]} Ra4 {[%emt 0:00:47]} 53. Nh6 {[%emt 0:00:20]} R4xa6 {[%emt 0:00:27]} (53... Ba2 $15) 54. Rxa6 $11 {[%emt 0:00:16]} Rxa6 {[%emt 0:00:02]} 55. Nhxg8 {[%emt 0:00:42]} Ra3 {[%emt 0:00:39]} 56. h4 {[%emt 0:00:37]} Kg7 {[%emt 0:00:26]} 57. g5 {[%emt 0:00:15]} Rb3 {[%emt 0:00:52]} 58. Ne7 {[%emt 0:00:17]} (58. Nh6 $5 Kg6 $8 59. Kg2 $14) 58... Ra3 $2 {[%emt 0:00:32][%mdl 8192]} (58... h6 $11 {and Black is okay.}) 59. Ng4 {[%emt 0:01:05]} Kf7 {[%emt 0:00:34] [#]} 60. Nf5 $2 {[%emt 0:00:36]} (60. Nd5 $1 $18 {[%cal Rd5f4]}) 60... Kg6 {[%emt 0:00:25]} 61. Ng3 {[%emt 0:00:18]} Rb3 $2 {[%emt 0:00:32][%mdl 8192]} (61... Ra5 $16 62. Kf3 Ra3+ 63. Kg2 Ra2+ 64. Kh3 Ra5) 62. Ne5+ $18 {[%emt 0:00:14]} Kg7 {[%emt 0:00:07]} 63. Nf5+ {[%emt 0:00:28]} Kg8 {[%emt 0:00:27]} 64. Nf3 {[%emt 0:00:29]} Kf7 {[%emt 0:00:29]} 65. h5 {[%emt 0:00:40]} Ra3 {[%emt 0:00:19]} 66. Kg3 {[%emt 0:00:28]} Ra4 {[%emt 0:00:16]} 67. N3d4 {[%emt 0:00:44]} Ra3+ {[%emt 0:00:50]} 68. Kf4 {[%emt 0:00:05]} Ra4 {[%emt 0:00:12]} 69. Ke4 {[%emt 0:00:20]} Ra1 {[%emt 0:00:28]} 70. Nh6+ {[%emt 0:00:40]} Kg7 {[%emt 0:01:16]} 71. Ne6+ {[%emt 0:00:42]} Kh8 {[%emt 0:00:01]} 72. Ke5 $2 {[%emt 0:00:49]} (72. Nf7+ Kg8 73. Nh6+ Kh8 74. Ke5) 72... Rf1 $2 {[%emt 0:00:51]} (72... Rh1 73. Kf6 (73. Nf4 Ra1 $18) 73... Rxh5) 73. Nf5 $18 {[%emt 0:00:24]} Kg8 {[%emt 0:00:28]} 74. Kf6 {[%emt 0:00:15]} Rf2 {[%emt 0:00:34]} 75. g6 $2 {[%emt 0:00:54]} (75. Ned4 $18 Kh8 76. Nc6) 75... hxg6 $11 {[%emt 0:00:23]} 76. hxg6 {[%emt 0:00:16]} Rf1 {[%emt 0:00:51]} 77. Ng5 {[%emt 0:00:06]} Rf2 {[%emt 0:00:18]} 78. Nf7 {[%emt 0:00:39]} Rg2 {[%emt 0:00:24]} 79. N5h6+ {[%emt 0:00:20]} Kf8 {[%emt 0:00:05]} 80. Ng5 {[%emt 0:00:02]} (80. Ne5 {simplifies} Rxg6+ 81. Nxg6+ Ke8 82. Ke6) 80... Rf2+ {[%emt 0:00:13]} 81. Nf5 {[%emt 0:00:02]} Kg8 {[%emt 0:00:25]} 82. Ne4 {[%emt 0:00:13]} (82. g7 {simplifies} Rxf5+ 83. Kxf5 Kxg7 84. Ne6+) 82... Rf1 {[%emt 0:00:25]} 83. Neg3 {[%emt 0:00:39]} (83. g7 {simplifies} Rxf5+ 84. Kxf5 Kxg7 85. Ng5) 83... Rf2 {[%emt 0:00:35]} 84. Kg5 {[%emt 0:01:57]} Rg2 {[%emt 0:00:53]} 85. Kh6 {[%emt 0:00:20]} Rh2+ $1 {[%emt 0:00:37]} 86. Nh5 {[%emt 0:00:04]} Rg2 {[%emt 0:00:08]} 87. Nfg3 {[%emt 0:00:09]} Rf2 $1 {[%emt 0:01:02]} 88. g7 {[%emt 0:01:10]} Rf7 {[%emt 0:00:45]} 89. Kg6 {[%emt 0:00:45]} Rxg7+ $1 {[%emt 0:00:05]} 90. Nxg7 {[%emt 0:00:07]} Kf8 {[%emt 0:00:06]} 91. N3f5 {[%emt 0:00:56]} Kg8 {[%emt 0:00:09]} 92. Ne6 {[%emt 0:00:25]} Kh8 {[%emt 0:00:05]} 93. Nd6 $1 {[%emt 0:00:20]} Kg8 {[%emt 0:00:06]} 94. Nc4 {[%emt 0:00:37]} Kh8 {[%emt 0:00:02]} 95. Ne5 {[%emt 0:00:41]} Kg8 {[%emt 0:00:03]} 96. Ng4 $1 {[%emt 0:00:30]} Kh8 {[%emt 0:00:02]} 97. Kf7 {[%emt 0:00:28]} Kh7 {[%emt 0:00:02]} 98. Nf4 {[%emt 0:00:32]} Kh8 {[%emt 0:00:06]} 99. Ne6 {[%emt 0:00:39]} Kh7 {[%emt 0:00:02]} 100. Nf4 {[%emt 0:00:23]} Kh8 {[%emt 0:00:02]} 101. Nh3 {[%emt 0:00:20]} Kh7 {[%emt 0:00:02]} 102. Ng5+ {[%emt 0:00:26]} Kh8 {[%emt 0:00:02]} 103. Ne5 {[%emt 0:00:59]} 1/2-1/2